[Event "Titled Tuesday Blitz December 20 Early 2022"]
[White "Chessmissile07"]
[Black "Najdoski, Toni"]
[BlackFideId "15001334"]
[WhiteElo "2730"]
[BlackElo "2598"]
[Result "1-0"]
[Round "01"]
[TimeControl "180+2"]
[Date "2022.12.20"]
[WhiteClock "0:00:05"]
[BlackClock "0:00:22"]

1. g3 {[%clk 0:02:57]}  Nf6 {[%clk 0:02:59]} 2. Bg2 {[%clk 0:02:56]}  g6 {[%clk 0:03:00]} 3. b3 {[%clk 0:02:51]}  Bg7 {[%clk 0:03:00]} 4. Bb2 {[%clk 0:02:52]}  O-O {[%clk 0:03:00]} 5. e3 {[%clk 0:02:50]}  a5 {[%clk 0:03:00]} 6. a3 {[%clk 0:02:50]}  d5 {[%clk 0:02:57]} 7. Ne2 {[%clk 0:02:49]}  c6 {[%clk 0:02:56]} 8. O-O {[%clk 0:02:48]}  Bg4 {[%clk 0:02:57]} 9. d3 {[%clk 0:02:46]}  Qc8 {[%clk 0:02:56]} 10. Nd2 {[%clk 0:02:46]}  Bh3 {[%clk 0:02:54]} 11. Nf3 {[%clk 0:02:43]}  Na6 {[%clk 0:02:51]} 12. Bxh3 {[%clk 0:02:34]}  Qxh3 {[%clk 0:02:52]} 13. Nf4 {[%clk 0:02:35]}  Qd7 {[%clk 0:02:52]} 14. Qe2 {[%clk 0:02:25]}  Nc5 {[%clk 0:02:44]} 15. Rad1 {[%clk 0:02:19]}  Rfe8 {[%clk 0:02:03]} 16. Kg2 {[%clk 0:02:10]}  Ne6 {[%clk 0:01:56]} 17. Ne5 {[%clk 0:02:02]}  Nxf4+ {[%clk 0:01:49]} 18. exf4 {[%clk 0:02:02]}  Qe6 {[%clk 0:01:44]} 19. Rde1 {[%clk 0:01:59]}  Nd7 {[%clk 0:01:43]} 20. Nxd7 {[%clk 0:01:54]}  Qxe2 {[%clk 0:01:41]} 21. Rxe2 {[%clk 0:01:51]}  Bxb2 {[%clk 0:01:42]} 22. a4 {[%clk 0:01:46]}  Rad8 {[%clk 0:01:38]} 23. Ne5 {[%clk 0:01:40]}  f6 {[%clk 0:01:32]} 24. Nf3 {[%clk 0:01:38]}  Bc3 {[%clk 0:01:27]} 25. d4 {[%clk 0:01:36]}  Kf7 {[%clk 0:01:23]} 26. Re3 {[%clk 0:01:36]}  Bb4 {[%clk 0:01:23]} 27. c3 {[%clk 0:01:35]}  Bd6 {[%clk 0:01:22]} 28. c4 {[%clk 0:01:35]}  b6 {[%clk 0:01:01]} 29. Rfe1 {[%clk 0:01:30]}  c5 {[%clk 0:00:46]} 30. Rd3 {[%clk 0:00:42]}  dxc4 {[%clk 0:00:43]} 31. bxc4 {[%clk 0:00:41]}  cxd4 {[%clk 0:00:44]} 32. Nxd4 {[%clk 0:00:37]}  Bc5 {[%clk 0:00:44]} 33. Red1 {[%clk 0:00:37]}  Rd6 {[%clk 0:00:43]} 34. Nb5 {[%clk 0:00:36]}  Rxd3 {[%clk 0:00:41]} 35. Rxd3 {[%clk 0:00:37]}  Rc8 {[%clk 0:00:40]} 36. Kf3 {[%clk 0:00:19]}  Ke6 {[%clk 0:00:39]} 37. g4 {[%clk 0:00:14]}  f5 {[%clk 0:00:30]} 38. h3 {[%clk 0:00:10]}  Rc6 {[%clk 0:00:26]} 39. Rd5 {[%clk 0:00:10]}  Rc8 {[%clk 0:00:23]} 40. Re5+ {[%clk 0:00:09]}  Kf6 {[%clk 0:00:23]} 41. Rd5 {[%clk 0:00:09]}  Bb4 {[%clk 0:00:20]} 42. Rd4 {[%clk 0:00:09]}  e5 {[%clk 0:00:20]} 43. fxe5+ {[%clk 0:00:08]}  Kxe5 {[%clk 0:00:21]} 44. gxf5 {[%clk 0:00:08]}  gxf5 {[%clk 0:00:21]} 45. Rd5+ {[%clk 0:00:08]}  Ke6 {[%clk 0:00:21]} 46. Nd4+ {[%clk 0:00:08]}  Kf6 {[%clk 0:00:20]} 47. Rxf5+ {[%clk 0:00:06]}  Kg6 {[%clk 0:00:21]} 48. Rb5 {[%clk 0:00:07]}  Rxc4 {[%clk 0:00:21]} 49. Rxb6+ {[%clk 0:00:07]}  Kg5 {[%clk 0:00:22]} 50. Rb5+ {[%clk 0:00:06]}  Kh4 {[%clk 0:00:22]} 51. Nf5+ {[%clk 0:00:05]}  Kg5 {[%clk 0:00:22]} 52. Ne3+ {[%clk 0:00:05]} 1-0


[Site "https://www.chess.com"]

[Event "Titled Tuesday Blitz December 20 Early 2022"]
[White "Coachpoker"]
[Black "yoelpolanco"]
[WhiteElo "2626"]
[BlackElo "2374"]
[Result "1-0"]
[Round "01"]
[TimeControl "180+2"]
[Date "2022.12.20"]
[WhiteClock "0:00:08"]
[BlackClock "0:00:08"]

1. d4 {[%clk 0:02:57]}  Nf6 {[%clk 0:02:55]} 2. c4 {[%clk 0:02:56]}  e6 {[%clk 0:02:55]} 3. Nf3 {[%clk 0:02:55]}  d5 {[%clk 0:02:54]} 4. e3 {[%clk 0:02:54]}  Be7 {[%clk 0:02:54]} 5. Nbd2 {[%clk 0:02:54]}  O-O {[%clk 0:02:55]} 6. Bd3 {[%clk 0:02:54]}  c5 {[%clk 0:02:54]} 7. b3 {[%clk 0:02:53]}  cxd4 {[%clk 0:02:54]} 8. exd4 {[%clk 0:02:54]}  Nc6 {[%clk 0:02:54]} 9. Bb2 {[%clk 0:02:54]}  b6 {[%clk 0:02:51]} 10. O-O {[%clk 0:02:54]}  Bb7 {[%clk 0:02:51]} 11. Qe2 {[%clk 0:02:54]}  Re8 {[%clk 0:02:46]} 12. Rac1 {[%clk 0:02:54]}  Bf8 {[%clk 0:02:43]} 13. Rfd1 {[%clk 0:02:54]}  g6 {[%clk 0:02:40]} 14. h3 {[%clk 0:02:54]}  Bg7 {[%clk 0:02:39]} 15. Qe3 {[%clk 0:02:53]}  Qd6 {[%clk 0:02:28]} 16. Ne5 {[%clk 0:02:53]}  Nd7 {[%clk 0:02:28]} 17. Ndf3 {[%clk 0:02:48]}  Rad8 {[%clk 0:02:17]} 18. c5 {[%clk 0:02:44]}  bxc5 {[%clk 0:02:07]} 19. dxc5 {[%clk 0:02:45]}  Qc7 {[%clk 0:02:05]} 20. Nxc6 {[%clk 0:02:41]}  Bxb2 {[%clk 0:01:57]} 21. Nxd8 {[%clk 0:02:41]}  Bxc1 {[%clk 0:01:56]} 22. Rxc1 {[%clk 0:02:38]}  Rxd8 {[%clk 0:01:51]} 23. c6 {[%clk 0:02:35]}  Bxc6 {[%clk 0:01:47]} 24. Bb5 {[%clk 0:02:35]}  Nb8 {[%clk 0:01:43]} 25. Ne5 {[%clk 0:02:34]}  d4 {[%clk 0:01:33]} 26. Qf4 {[%clk 0:02:22]}  Rd5 {[%clk 0:01:30]} 27. Bxc6 {[%clk 0:02:06]}  Nxc6 {[%clk 0:01:25]} 28. Rxc6 {[%clk 0:01:48]}  Qxe5 {[%clk 0:01:24]} 29. Qxe5 {[%clk 0:01:45]}  Rxe5 {[%clk 0:01:25]} 30. Rd6 {[%clk 0:01:41]}  Re1+ {[%clk 0:01:25]} 31. Kh2 {[%clk 0:01:40]}  e5 {[%clk 0:01:15]} 32. Kg3 {[%clk 0:01:35]}  Re2 {[%clk 0:01:13]} 33. Rd7 {[%clk 0:01:29]}  Rxa2 {[%clk 0:01:10]} 34. Kf3 {[%clk 0:01:21]}  Ra3 {[%clk 0:01:08]} 35. Ke4 {[%clk 0:01:20]}  f6 {[%clk 0:01:02]} 36. f4 {[%clk 0:01:14]}  exf4 {[%clk 0:01:02]} 37. Kxf4 {[%clk 0:01:09]}  Rxb3 {[%clk 0:01:02]} 38. Rxa7 {[%clk 0:01:01]}  Rb2 {[%clk 0:00:55]} 39. Kf3 {[%clk 0:00:57]}  d3 {[%clk 0:00:48]} 40. Rd7 {[%clk 0:00:56]}  d2 {[%clk 0:00:48]} 41. g4 {[%clk 0:00:53]}  Rb3+ {[%clk 0:00:44]} 42. Kg2 {[%clk 0:00:53]}  Rb2 {[%clk 0:00:41]} 43. Kf3 {[%clk 0:00:53]}  h5 {[%clk 0:00:38]} 44. gxh5 {[%clk 0:00:48]}  g5 {[%clk 0:00:38]} 45. Kg4 {[%clk 0:00:42]}  Rb3 {[%clk 0:00:28]} 46. Kf5 {[%clk 0:00:28]}  Rf3+ {[%clk 0:00:16]} 47. Kg6 {[%clk 0:00:28]}  Kf8 {[%clk 0:00:16]} 48. h6 {[%clk 0:00:25]}  Ke8 {[%clk 0:00:11]} 49. Rxd2 {[%clk 0:00:21]}  Rxh3 {[%clk 0:00:12]} 50. h7 {[%clk 0:00:18]}  Ke7 {[%clk 0:00:11]} 51. Rf2 {[%clk 0:00:10]}  g4 {[%clk 0:00:10]} 52. Rg2 {[%clk 0:00:09]}  f5 {[%clk 0:00:09]} 53. Kg7 {[%clk 0:00:08]}  Ke6 {[%clk 0:00:08]} 54. h8=Q {[%clk 0:00:08]}  Rxh8 {[%clk 0:00:08]} 55. Kxh8 {[%clk 0:00:09]}  Ke5 {[%clk 0:00:09]} 56. Kg7 {[%clk 0:00:10]}  Kf4 {[%clk 0:00:08]} 57. Kg6 {[%clk 0:00:10]}  Kf3 {[%clk 0:00:08]} 58. Rg1 {[%clk 0:00:10]}  f4 {[%clk 0:00:09]} 59. Kg5 {[%clk 0:00:10]}  g3 {[%clk 0:00:09]} 60. Kh4 {[%clk 0:00:10]}  Kf2 {[%clk 0:00:09]} 61. Rb1 {[%clk 0:00:10]}  g2 {[%clk 0:00:10]} 62. Kg4 {[%clk 0:00:08]}  f3 {[%clk 0:00:09]} 63. Rb2+ {[%clk 0:00:08]}  Kf1 {[%clk 0:00:09]} 64. Kxf3 {[%clk 0:00:08]}  g1=Q {[%clk 0:00:08]} 65. Rb1# {[%clk 0:00:08]} 1-0


[Site "https://www.chess.com"]

[Event "Titled Tuesday Blitz December 20 Early 2022"]
[White "Cuajada_Zero"]
[Black "Kildepiotr"]
[WhiteElo "2413"]
[BlackElo "2682"]
[Result "0-1"]
[Round "01"]
[TimeControl "180+2"]
[Date "2022.12.20"]
[WhiteClock "0:00:03"]
[BlackClock "0:01:15"]

1. d4 {[%clk 0:02:59]}  c5 {[%clk 0:02:59]} 2. d5 {[%clk 0:02:59]}  e5 {[%clk 0:02:59]} 3. Nc3 {[%clk 0:02:58]}  d6 {[%clk 0:02:59]} 4. e4 {[%clk 0:02:58]}  Be7 {[%clk 0:03:00]} 5. Be2 {[%clk 0:02:54]}  Bg5 {[%clk 0:02:59]} 6. h3 {[%clk 0:02:54]}  Bxc1 {[%clk 0:02:59]} 7. Qxc1 {[%clk 0:02:54]}  Ne7 {[%clk 0:02:59]} 8. Nf3 {[%clk 0:02:55]}  O-O {[%clk 0:02:58]} 9. Nd2 {[%clk 0:02:55]}  Ng6 {[%clk 0:02:53]} 10. Nc4 {[%clk 0:02:52]}  Nf4 {[%clk 0:02:52]} 11. Bf3 {[%clk 0:02:51]}  a6 {[%clk 0:02:51]} 12. a4 {[%clk 0:02:51]}  f5 {[%clk 0:02:48]} 13. a5 {[%clk 0:02:49]}  Qc7 {[%clk 0:02:33]} 14. Nb6 {[%clk 0:02:44]}  Ra7 {[%clk 0:02:33]} 15. O-O {[%clk 0:02:41]}  Nd7 {[%clk 0:02:30]} 16. Nxd7 {[%clk 0:02:21]}  Bxd7 {[%clk 0:02:29]} 17. Kh2 {[%clk 0:02:09]}  Raa8 {[%clk 0:02:24]} 18. Qe3 {[%clk 0:01:33]}  Rf7 {[%clk 0:02:18]} 19. exf5 {[%clk 0:00:53]}  Bxf5 {[%clk 0:02:18]} 20. Be4 {[%clk 0:00:53]}  Raf8 {[%clk 0:02:11]} 21. f3 {[%clk 0:00:52]}  Qe7 {[%clk 0:02:02]} 22. Ra4 {[%clk 0:00:48]}  Bd7 {[%clk 0:01:59]} 23. Rc4 {[%clk 0:00:40]}  Qg5 {[%clk 0:01:50]} 24. Qf2 {[%clk 0:00:22]}  Qd8 {[%clk 0:01:37]} 25. Ra1 {[%clk 0:00:17]}  Rf6 {[%clk 0:01:33]} 26. b4 {[%clk 0:00:16]}  Rh6 {[%clk 0:01:16]} 27. bxc5 {[%clk 0:00:13]}  Bxh3 {[%clk 0:01:16]} 28. gxh3 {[%clk 0:00:02]}  Rxh3+ {[%clk 0:01:15]} 29. Kg1 {[%clk 0:00:02]}  Qg5+ {[%clk 0:01:16]} 30. Kf1 {[%clk 0:00:03]}  Rh1+ {[%clk 0:01:15]} 0-1


[Site "https://www.chess.com"]

[Event "Titled Tuesday Blitz December 20 Early 2022"]
[White "De Firmian, Nick"]
[Black "Baki, Peter"]
[WhiteFideId "2000105"]
[BlackFideId "718459"]
[WhiteElo "2460"]
[BlackElo "2100"]
[Result "0-1"]
[Round "01"]
[TimeControl "180+2"]
[Date "2022.12.20"]
[WhiteClock "0:01:53"]
[BlackClock "0:02:00"]

1. Nf3 {[%clk 0:02:49]}  d5 {[%clk 0:02:45]} 2. g3 {[%clk 0:02:50]}  Nf6 {[%clk 0:02:44]} 3. Bg2 {[%clk 0:02:50]}  e6 {[%clk 0:02:42]} 4. O-O {[%clk 0:02:50]}  Be7 {[%clk 0:02:38]} 5. d4 {[%clk 0:02:50]}  O-O {[%clk 0:02:34]} 6. Nbd2 {[%clk 0:02:50]}  b6 {[%clk 0:02:28]} 7. b3 {[%clk 0:02:51]}  Bb7 {[%clk 0:02:26]} 8. Bb2 {[%clk 0:02:51]}  Nbd7 {[%clk 0:02:26]} 9. Re1 {[%clk 0:02:51]}  Ne4 {[%clk 0:02:23]} 10. e3 {[%clk 0:02:46]}  f5 {[%clk 0:02:22]} 11. Ne5 {[%clk 0:02:33]}  Nxe5 {[%clk 0:02:20]} 12. dxe5 {[%clk 0:02:33]}  Bb4 {[%clk 0:02:19]} 13. Bxe4 {[%clk 0:02:07]}  fxe4 {[%clk 0:02:16]} 14. a3 {[%clk 0:02:05]}  Bxd2 {[%clk 0:02:06]} 15. Qxd2 {[%clk 0:02:06]}  Qg5 {[%clk 0:02:05]} 16. h4 {[%clk 0:02:03]}  Qg4 {[%clk 0:02:04]} 17. Qe2 {[%clk 0:02:00]}  Rf3 {[%clk 0:02:04]} 18. Qf1 {[%clk 0:01:53]}  Raf8 {[%clk 0:02:03]} 19. Re2 {[%clk 0:01:54]}  Ba6 {[%clk 0:02:02]} 20. Rae1 {[%clk 0:01:53]}  Rxg3+ {[%clk 0:02:00]} 0-1


[Site "https://www.chess.com"]

[Event "Titled Tuesday Blitz December 20 Early 2022"]
[White "Devallee, Jeremie"]
[Black "Ducrest, Pierre"]
[WhiteFideId "665240"]
[BlackFideId "1303627"]
[WhiteElo "2204"]
[BlackElo "2004"]
[Result "0-1"]
[Round "01"]
[TimeControl "180+2"]
[Date "2022.12.20"]
[WhiteClock "0:00:08"]
[BlackClock "0:00:52"]

1. e4 {[%clk 0:02:57]}  c5 {[%clk 0:02:58]} 2. Nf3 {[%clk 0:02:56]}  d6 {[%clk 0:02:59]} 3. d4 {[%clk 0:02:52]}  Nf6 {[%clk 0:02:59]} 4. Nc3 {[%clk 0:02:50]}  cxd4 {[%clk 0:02:59]} 5. Nxd4 {[%clk 0:02:51]}  a6 {[%clk 0:02:59]} 6. Bg5 {[%clk 0:02:50]}  Nbd7 {[%clk 0:02:58]} 7. Bc4 {[%clk 0:02:39]}  Qb6 {[%clk 0:02:57]} 8. Bb3 {[%clk 0:02:33]}  h6 {[%clk 0:02:50]} 9. Be3 {[%clk 0:02:29]}  Qa5 {[%clk 0:02:46]} 10. O-O {[%clk 0:02:27]}  e6 {[%clk 0:02:44]} 11. f4 {[%clk 0:02:23]}  Be7 {[%clk 0:02:43]} 12. Qf3 {[%clk 0:02:22]}  O-O {[%clk 0:02:37]} 13. Rad1 {[%clk 0:02:14]}  Qc7 {[%clk 0:02:35]} 14. Qg3 {[%clk 0:01:52]}  Kh8 {[%clk 0:02:31]} 15. Bxe6 {[%clk 0:01:39]}  Nh5 {[%clk 0:02:06]} 16. Qh3 {[%clk 0:01:38]}  fxe6 {[%clk 0:02:04]} 17. Nxe6 {[%clk 0:01:22]}  Ndf6 {[%clk 0:02:04]} 18. Nxc7 {[%clk 0:01:08]}  Bxh3 {[%clk 0:02:03]} 19. Nxa8 {[%clk 0:00:55]}  Bg4 {[%clk 0:01:45]} 20. Nb6 {[%clk 0:00:53]}  Bxd1 {[%clk 0:01:44]} 21. Rxd1 {[%clk 0:00:43]}  Ng4 {[%clk 0:01:44]} 22. Bc1 {[%clk 0:00:20]}  Nxf4 {[%clk 0:01:42]} 23. h3 {[%clk 0:00:20]}  Bd8 {[%clk 0:01:17]} 24. Nd7 {[%clk 0:00:14]}  Rf7 {[%clk 0:01:17]} 25. hxg4 {[%clk 0:00:15]}  Ng6 {[%clk 0:01:01]} 26. Nc5 {[%clk 0:00:14]}  Bb6 {[%clk 0:01:00]} 27. Be3 {[%clk 0:00:12]}  Bxc5 {[%clk 0:00:58]} 28. Bxc5 {[%clk 0:00:11]}  dxc5 {[%clk 0:00:59]} 29. Rd8+ {[%clk 0:00:10]}  Kh7 {[%clk 0:00:59]} 30. Rc8 {[%clk 0:00:10]}  Ne5 {[%clk 0:00:57]} 31. Rxc5 {[%clk 0:00:08]}  Nxg4 {[%clk 0:00:57]} 32. Rd5 {[%clk 0:00:07]}  g5 {[%clk 0:00:54]} 33. e5 {[%clk 0:00:07]}  Kg6 {[%clk 0:00:53]} 34. e6 {[%clk 0:00:08]}  Re7 {[%clk 0:00:53]} 35. Rd7 {[%clk 0:00:08]}  Rxe6 {[%clk 0:00:52]} 36. Rxb7 {[%clk 0:00:08]}  Re1# {[%clk 0:00:52]} 0-1


[Site "https://www.chess.com"]

[Event "Titled Tuesday Blitz December 20 Early 2022"]
[White "Djeno, Drago"]
[Black "Shockerlover"]
[WhiteFideId "14400421"]
[WhiteElo "2223"]
[BlackElo "1948"]
[Result "1-0"]
[Round "01"]
[TimeControl "180+2"]
[Date "2022.12.20"]
[WhiteClock "0:01:45"]
[BlackClock "0:00:08"]

1. e4 {[%clk 0:02:59]}  d6 {[%clk 0:02:57]} 2. Nc3 {[%clk 0:02:58]}  g6 {[%clk 0:02:54]} 3. f4 {[%clk 0:02:57]}  Bg7 {[%clk 0:02:55]} 4. Bc4 {[%clk 0:02:57]}  Nf6 {[%clk 0:02:53]} 5. Nf3 {[%clk 0:02:57]}  O-O {[%clk 0:02:49]} 6. d3 {[%clk 0:02:57]}  c5 {[%clk 0:02:43]} 7. O-O {[%clk 0:02:55]}  Nc6 {[%clk 0:02:38]} 8. Qe1 {[%clk 0:02:55]}  a6 {[%clk 0:02:34]} 9. a3 {[%clk 0:02:54]}  b5 {[%clk 0:02:31]} 10. Ba2 {[%clk 0:02:54]}  b4 {[%clk 0:02:28]} 11. Ne2 {[%clk 0:02:49]}  a5 {[%clk 0:02:24]} 12. axb4 {[%clk 0:02:45]}  cxb4 {[%clk 0:02:14]} 13. Qh4 {[%clk 0:02:38]}  Qb6+ {[%clk 0:02:04]} 14. Kh1 {[%clk 0:02:37]}  Bg4 {[%clk 0:01:58]} 15. f5 {[%clk 0:02:34]}  Bxf3 {[%clk 0:01:51]} 16. Rxf3 {[%clk 0:02:35]}  Ne5 {[%clk 0:01:36]} 17. Rh3 {[%clk 0:02:23]}  Neg4 {[%clk 0:01:18]} 18. d4 {[%clk 0:02:16]}  h5 {[%clk 0:01:10]} 19. fxg6 {[%clk 0:02:04]}  Nxe4 {[%clk 0:01:05]} 20. gxf7+ {[%clk 0:01:58]}  Rxf7 {[%clk 0:00:57]} 21. Bxf7+ {[%clk 0:01:58]}  Kxf7 {[%clk 0:00:39]} 22. Qxh5+ {[%clk 0:01:49]}  Kg8 {[%clk 0:00:29]} 23. Qd5+ {[%clk 0:01:48]}  Kf8 {[%clk 0:00:09]} 24. Rf3+ {[%clk 0:01:45]}  Ke8 {[%clk 0:00:08]} 25. Qxa8+ {[%clk 0:01:45]}  Kd7 {[%clk 0:00:08]} 26. Qxe4 {[%clk 0:01:45]} 1-0


[Site "https://www.chess.com"]

[Event "Titled Tuesday Blitz December 20 Early 2022"]
[White "Dreux, Vincent"]
[Black "AlexPapasimakopoulos"]
[WhiteFideId "658960"]
[WhiteElo "1937"]
[BlackElo "2708"]
[Result "0-1"]
[Round "01"]
[TimeControl "180+2"]
[Date "2022.12.20"]
[WhiteClock "0:00:04"]
[BlackClock "0:00:36"]

1. e4 {[%clk 0:03:00]}  e6 {[%clk 0:02:58]} 2. d4 {[%clk 0:03:00]}  d5 {[%clk 0:02:58]} 3. Nc3 {[%clk 0:03:01]}  Bb4 {[%clk 0:02:58]} 4. e5 {[%clk 0:03:01]}  b6 {[%clk 0:02:57]} 5. a3 {[%clk 0:03:00]}  Bf8 {[%clk 0:02:57]} 6. h4 {[%clk 0:02:49]}  h5 {[%clk 0:02:55]} 7. Bg5 {[%clk 0:02:48]}  Be7 {[%clk 0:02:55]} 8. Nf3 {[%clk 0:02:47]}  Ba6 {[%clk 0:02:52]} 9. Bxa6 {[%clk 0:02:46]}  Nxa6 {[%clk 0:02:53]} 10. Qd3 {[%clk 0:02:44]}  Nb8 {[%clk 0:02:52]} 11. O-O {[%clk 0:02:31]}  Nh6 {[%clk 0:02:52]} 12. g3 {[%clk 0:02:30]}  Nf5 {[%clk 0:02:51]} 13. Ne2 {[%clk 0:02:24]}  Qd7 {[%clk 0:02:51]} 14. Bxe7 {[%clk 0:02:23]}  Nxe7 {[%clk 0:02:48]} 15. Nf4 {[%clk 0:02:17]}  Nbc6 {[%clk 0:02:47]} 16. c4 {[%clk 0:02:15]}  dxc4 {[%clk 0:02:35]} 17. Qxc4 {[%clk 0:02:16]}  Na5 {[%clk 0:02:35]} 18. Qc3 {[%clk 0:02:11]}  Nd5 {[%clk 0:02:26]} 19. Nxd5 {[%clk 0:02:05]}  Qxd5 {[%clk 0:02:27]} 20. b4 {[%clk 0:01:52]}  Nc4 {[%clk 0:02:20]} 21. Rac1 {[%clk 0:01:43]}  b5 {[%clk 0:02:20]} 22. Nd2 {[%clk 0:01:41]}  Nxd2 {[%clk 0:02:11]} 23. Qxd2 {[%clk 0:01:42]}  c6 {[%clk 0:02:06]} 24. Rc5 {[%clk 0:01:40]}  Qf3 {[%clk 0:02:06]} 25. Rfc1 {[%clk 0:01:28]}  O-O {[%clk 0:01:47]} 26. Qe3 {[%clk 0:01:19]}  Qg4 {[%clk 0:01:40]} 27. Rxc6 {[%clk 0:01:15]}  Rfd8 {[%clk 0:01:39]} 28. f4 {[%clk 0:00:51]}  a5 {[%clk 0:01:35]} 29. bxa5 {[%clk 0:00:45]}  Rxa5 {[%clk 0:01:36]} 30. Rc8 {[%clk 0:00:41]}  Ra8 {[%clk 0:01:36]} 31. Rxd8+ {[%clk 0:00:40]}  Rxd8 {[%clk 0:01:36]} 32. Kg2 {[%clk 0:00:37]}  Qf5 {[%clk 0:01:33]} 33. Rd1 {[%clk 0:00:30]}  Qc2+ {[%clk 0:01:29]} 34. Rd2 {[%clk 0:00:30]}  Qc4 {[%clk 0:01:29]} 35. Qd3 {[%clk 0:00:28]}  Qc6+ {[%clk 0:01:28]} 36. Qf3 {[%clk 0:00:27]}  Qc1 {[%clk 0:01:27]} 37. Qd1 {[%clk 0:00:25]}  Qxa3 {[%clk 0:01:25]} 38. Qxh5 {[%clk 0:00:24]}  Qc3 {[%clk 0:01:20]} 39. Qd1 {[%clk 0:00:23]}  b4 {[%clk 0:01:17]} 40. Qc2 {[%clk 0:00:20]}  Qxc2 {[%clk 0:01:01]} 41. Rxc2 {[%clk 0:00:21]}  Rxd4 {[%clk 0:01:01]} 42. Rb2 {[%clk 0:00:21]}  Rc4 {[%clk 0:01:01]} 43. Kf3 {[%clk 0:00:21]}  g6 {[%clk 0:01:02]} 44. Ke3 {[%clk 0:00:17]}  Rc3+ {[%clk 0:01:02]} 45. Kd4 {[%clk 0:00:16]}  Rxg3 {[%clk 0:01:02]} 46. Rxb4 {[%clk 0:00:15]}  Rg4 {[%clk 0:01:03]} 47. Ke3 {[%clk 0:00:16]}  Rxh4 {[%clk 0:01:03]} 48. Kf3 {[%clk 0:00:15]}  Kg7 {[%clk 0:01:01]} 49. Rb1 {[%clk 0:00:16]}  Rh3+ {[%clk 0:01:01]} 50. Kg4 {[%clk 0:00:15]}  Rh2 {[%clk 0:01:00]} 51. Rg1 {[%clk 0:00:14]}  Kh6 {[%clk 0:00:56]} 52. Kg3 {[%clk 0:00:14]}  Ra2 {[%clk 0:00:55]} 53. Rh1+ {[%clk 0:00:14]}  Kg7 {[%clk 0:00:55]} 54. Kg4 {[%clk 0:00:14]}  Ra4 {[%clk 0:00:56]} 55. Rf1 {[%clk 0:00:14]}  f6 {[%clk 0:00:56]} 56. exf6+ {[%clk 0:00:13]}  Kxf6 {[%clk 0:00:57]} 57. Kg3 {[%clk 0:00:13]}  Kf5 {[%clk 0:00:57]} 58. Rf3 {[%clk 0:00:12]}  Re4 {[%clk 0:00:56]} 59. Rf1 {[%clk 0:00:10]}  Re3+ {[%clk 0:00:57]} 60. Kf2 {[%clk 0:00:09]}  Kxf4 {[%clk 0:00:56]} 61. Ra1 {[%clk 0:00:09]}  Rb3 {[%clk 0:00:53]} 62. Ra4+ {[%clk 0:00:08]}  Kf5 {[%clk 0:00:53]} 63. Ra5+ {[%clk 0:00:09]}  e5 {[%clk 0:00:54]} 64. Ra8 {[%clk 0:00:09]}  g5 {[%clk 0:00:50]} 65. Rc8 {[%clk 0:00:08]}  Kf4 {[%clk 0:00:50]} 66. Rf8+ {[%clk 0:00:07]}  Ke4 {[%clk 0:00:50]} 67. Rg8 {[%clk 0:00:07]}  Rb2+ {[%clk 0:00:49]} 68. Ke1 {[%clk 0:00:06]}  Ke3 {[%clk 0:00:48]} 69. Kf1 {[%clk 0:00:07]}  Rf2+ {[%clk 0:00:35]} 70. Kg1 {[%clk 0:00:05]}  Rf5 {[%clk 0:00:35]} 71. Kg2 {[%clk 0:00:05]}  e4 {[%clk 0:00:35]} 72. Kg3 {[%clk 0:00:05]}  Ke2 {[%clk 0:00:35]} 73. Kg4 {[%clk 0:00:05]}  Rf7 {[%clk 0:00:35]} 74. Kxg5 {[%clk 0:00:03]}  e3 {[%clk 0:00:35]} 75. Re8 {[%clk 0:00:04]}  Kf2 {[%clk 0:00:36]} 76. Kg4 {[%clk 0:00:04]}  e2 {[%clk 0:00:36]} 0-1


[Site "https://www.chess.com"]

[Event "Titled Tuesday Blitz December 20 Early 2022"]
[White "Dzhess, Anna"]
[Black "Willi_Skibbe"]
[WhiteFideId "34377859"]
[WhiteElo "1062"]
[BlackElo "2346"]
[Result "1-0"]
[Round "01"]
[TimeControl "180+2"]
[Date "2022.12.20"]
[WhiteClock "0:00:45"]
[BlackClock "0:00:55"]

1. e4 {[%clk 0:02:59]}  e5 {[%clk 0:02:56]} 2. Nf3 {[%clk 0:02:59]}  Nc6 {[%clk 0:02:56]} 3. Bb5 {[%clk 0:02:58]}  a6 {[%clk 0:02:56]} 4. Ba4 {[%clk 0:02:58]}  Nf6 {[%clk 0:02:56]} 5. O-O {[%clk 0:02:58]}  Be7 {[%clk 0:02:56]} 6. Re1 {[%clk 0:02:55]}  b5 {[%clk 0:02:54]} 7. Bb3 {[%clk 0:02:55]}  O-O {[%clk 0:02:55]} 8. c3 {[%clk 0:02:55]}  d5 {[%clk 0:02:54]} 9. exd5 {[%clk 0:02:55]}  Nxd5 {[%clk 0:02:55]} 10. Nxe5 {[%clk 0:02:55]}  Nxe5 {[%clk 0:02:54]} 11. Rxe5 {[%clk 0:02:55]}  c6 {[%clk 0:02:54]} 12. d4 {[%clk 0:02:55]}  Bd6 {[%clk 0:02:54]} 13. Re1 {[%clk 0:02:55]}  Qh4 {[%clk 0:02:55]} 14. g3 {[%clk 0:02:55]}  Qh3 {[%clk 0:02:55]} 15. Be3 {[%clk 0:02:55]}  Be6 {[%clk 0:02:31]} 16. Qf3 {[%clk 0:02:44]}  a5 {[%clk 0:02:22]} 17. Nd2 {[%clk 0:02:39]}  a4 {[%clk 0:02:19]} 18. Bc2 {[%clk 0:02:36]}  Rae8 {[%clk 0:02:17]} 19. a3 {[%clk 0:02:26]}  f5 {[%clk 0:02:16]} 20. Qg2 {[%clk 0:02:17]}  Qh5 {[%clk 0:02:15]} 21. Bd1 {[%clk 0:01:35]}  Qg6 {[%clk 0:01:57]} 22. f4 {[%clk 0:01:26]}  Nxe3 {[%clk 0:01:48]} 23. Rxe3 {[%clk 0:01:25]}  Bd5 {[%clk 0:01:48]} 24. Qf2 {[%clk 0:01:24]}  Rxe3 {[%clk 0:01:48]} 25. Qxe3 {[%clk 0:01:24]}  Re8 {[%clk 0:01:48]} 26. Qf2 {[%clk 0:01:23]}  Qe6 {[%clk 0:01:13]} 27. Bf3 {[%clk 0:01:16]}  Bxf3 {[%clk 0:01:09]} 28. Nxf3 {[%clk 0:01:16]}  Qe2 {[%clk 0:01:07]} 29. Re1 {[%clk 0:01:08]}  Qxf2+ {[%clk 0:01:05]} 30. Kxf2 {[%clk 0:01:08]}  Rxe1 {[%clk 0:01:02]} 31. Kxe1 {[%clk 0:01:08]}  h6 {[%clk 0:00:58]} 32. Ke2 {[%clk 0:00:59]}  c5 {[%clk 0:00:54]} 33. dxc5 {[%clk 0:00:56]}  Bxc5 {[%clk 0:00:55]} 34. Kd3 {[%clk 0:00:46]}  Kf7 {[%clk 0:00:55]} 35. Nd4 {[%clk 0:00:45]} 1-0


[Site "https://www.chess.com"]

[Event "Titled Tuesday Blitz December 20 Early 2022"]
[White "Ekat, Michael"]
[Black "Voilo, Anastasia"]
[WhiteFideId "4689801"]
[BlackFideId "34112413"]
[WhiteElo "2051"]
[BlackElo "2133"]
[Result "1-0"]
[Round "01"]
[TimeControl "180+2"]
[Date "2022.12.20"]
[WhiteClock "0:01:26"]
[BlackClock "0:00:32"]

1. d4 {[%clk 0:02:59]}  Nf6 {[%clk 0:02:58]} 2. c4 {[%clk 0:02:59]}  g6 {[%clk 0:02:56]} 3. Nc3 {[%clk 0:02:58]}  d5 {[%clk 0:02:56]} 4. e3 {[%clk 0:02:57]}  Bg7 {[%clk 0:02:55]} 5. Nf3 {[%clk 0:02:57]}  O-O {[%clk 0:02:55]} 6. cxd5 {[%clk 0:02:57]}  Nxd5 {[%clk 0:02:55]} 7. Bc4 {[%clk 0:02:57]}  c6 {[%clk 0:02:43]} 8. O-O {[%clk 0:02:55]}  Bg4 {[%clk 0:02:38]} 9. h3 {[%clk 0:02:55]}  Bxf3 {[%clk 0:02:38]} 10. Qxf3 {[%clk 0:02:54]}  Nxc3 {[%clk 0:02:07]} 11. bxc3 {[%clk 0:02:54]}  Nd7 {[%clk 0:02:07]} 12. a4 {[%clk 0:02:34]}  Qa5 {[%clk 0:02:05]} 13. Ba3 {[%clk 0:02:24]}  Rae8 {[%clk 0:01:43]} 14. Rfc1 {[%clk 0:02:03]}  Qf5 {[%clk 0:01:42]} 15. Qxf5 {[%clk 0:02:00]}  gxf5 {[%clk 0:01:43]} 16. Rab1 {[%clk 0:02:00]}  b6 {[%clk 0:01:42]} 17. Be2 {[%clk 0:01:53]}  Nf6 {[%clk 0:01:37]} 18. a5 {[%clk 0:01:49]}  b5 {[%clk 0:01:34]} 19. c4 {[%clk 0:01:48]}  a6 {[%clk 0:01:30]} 20. cxb5 {[%clk 0:01:46]}  cxb5 {[%clk 0:01:30]} 21. Rc6 {[%clk 0:01:45]}  Nd5 {[%clk 0:01:15]} 22. Bf3 {[%clk 0:01:31]}  Nf6 {[%clk 0:00:34]} 23. Rxa6 {[%clk 0:01:29]}  Ne4 {[%clk 0:00:31]} 24. Bxe4 {[%clk 0:01:27]}  fxe4 {[%clk 0:00:32]} 25. Rxb5 {[%clk 0:01:26]} 1-0


[Site "https://www.chess.com"]